bitfinex/quotes_SOLUSD_20260306
["timestamp","ask_amount","ask_price","bid_price","bid_amount"]
[1772795550735,45.43805219,88.032,87.932,0.65976732]
[1772795550736,0.32010766,87.979,87.932,0.65976732]
[1772795550937,0.3207104,87.987,87.934,0.65976732]
[1772795551155,0.3207104,87.987,87.938,0.65976732]
[1772795551457,0.3207104,87.997,87.952,0.65976732]
[1772795551755,0.3207104,87.997,87.955,0.14216157]
[1772795551947,11.36403994,87.997,87.962,0.69394149]
[1772795552256,0.3218949,87.996,87.962,0.69394149]
[1772795552650,11.68604781,87.996,87.962,0.69394149]
[1772795553151,11.68604781,87.996,87.964,0.65756773]
[1772795553848,11.68604781,87.996,87.963,11.36841626]
[1772795553849,0.32361929,87.995,87.963,11.36841626]
[1772795554665,0.32361929,87.979,87.909,0.65756773]
[1772795554844,0.32361929,87.979,87.92,0.14216157]
[1772795555042,0.32361929,87.979,87.934,0.14216157]
[1772795555245,0.32361929,87.979,87.942,0.65756773]
[1772795555447,0.32418302,87.987,87.942,0.65756773]
[1772795556364,0.32474179,87.979,87.942,0.65756773]
[1772795557352,0.32474179,87.979,87.944,0.65756773]
[1772795557868,0.32583838,87.978,87.944,0.65756773]
[1772795558245,0.32583838,87.978,87.921,3.69383402]
[1772795558246,0.32583838,87.969,87.928,11.37294149]
[1772795558459,0.32583838,87.969,87.928,12.03050922]
[1772795558744,0.32583838,87.969,87.929,0.65756773]
[1772795559353,0.32637769,87.959,87.93,11.37268281]
[1772795560445,0.32637769,87.959,87.904,0.14216157]
[1772795560446,0.32637769,87.959,87.909,0.65756773]
[1772795560763,0.32743914,87.949,87.913,0.65756773]
[1772795561364,0.32743914,87.939,87.909,11.37535442]
[1772795561560,0.32743914,87.939,87.905,11.37585874]
[1772795563666,0.32847014,87.929,87.888,0.94189087]
[1772795563852,0.32847014,87.929,87.891,0.65756773]
[1772795564056,0.32847014,87.929,87.893,0.65756773]
[1772795564452,39.80076871,87.938,87.885,51.85756773]
[1772795564453,0.32898929,87.919,87.885,51.85756773]
[1772795564646,10.14663237,87.91,87.886,11.37837653]
[1772795564844,0.32898929,87.919,87.887,0.65756773]
[1772795565773,11.37423508,87.918,87.889,0.65756773]
[1772795566455,0.3299979,87.909,87.885,51.2]
[1772795567669,0.3299979,87.909,87.886,11.37837653]
[1772795567864,11.37552896,87.908,87.886,11.37837653]
[1772795568062,11.37552896,87.908,87.885,51.2]
[1772795568373,11.37552896,87.908,87.885,62.57844178]
[1772795568956,10.14663237,87.91,87.885,62.57844178]
[1772795569166,10.14663237,87.91,87.886,0.65756773]
[1772795569376,11.37507019,87.912,87.886,0.65756773]
[1772795569673,10.14663237,87.91,87.886,0.65756773]
[1772795570172,11.37539956,87.909,87.886,0.65756773]
[1772795571066,10.14663237,87.92,87.888,0.65756773]
[1772795571473,11.37364542,87.923,87.888,0.65756773]
[1772795571666,11.37307696,87.927,87.888,0.65756773]
[1772795572197,11.37307696,87.927,87.89,0.65756773]
[1772795574178,11.37307696,87.927,87.892,0.65756773]
[1772795574179,0.33377093,87.926,87.892,0.65756773]
[1772795574364,10.14663237,87.92,87.892,0.65756773]
[1772795574688,0.33377093,87.919,87.892,0.65756773]
[1772795575082,11.37307696,87.927,87.892,0.65756773]
[1772795575561,4.06614962,87.93,87.892,0.65756773]
[1772795576160,11.37229481,87.933,87.894,0.65756773]
[1772795576468,4.06614962,87.93,87.894,0.65756773]
[1772795577183,11.37169779,87.938,87.894,0.65756773]
[1772795578168,0.33553619,87.929,87.894,0.65756773]
[1772795578869,11.37294149,87.928,87.896,0.65756773]
[1772795580182,0.33638922,87.927,87.896,0.65756773]
[1772795580963,11.37320019,87.926,87.897,11.37695256]
[1772795581163,11.37320019,87.926,87.897,12.03452029]
[1772795582077,11.37320019,87.926,87.898,0.68350965]
[1772795582262,0.33680963,87.927,87.898,0.68350965]
[1772795583585,11.37320019,87.926,87.898,0.68350965]
[1772795584287,11.37320019,87.926,87.899,11.3766937]
[1772795584765,11.37320019,87.926,87.9,0.68350965]
[1772795585093,0.33882412,87.929,87.902,0.68350965]
[1772795587493,4.06614962,87.93,87.904,0.68350965]
[1772795588085,0.33999786,87.919,87.89,11.3777576]
[1772795588969,0.33999786,87.919,87.89,12.06126725]
[1772795589176,0.33999786,87.919,87.891,0.68350965]
[1772795589883,4.06614962,87.95,87.884,0.68350965]
[1772795589884,0.34075898,87.909,87.884,0.68350965]
[1772795590086,0.34075898,87.909,87.885,11.378506]
[1772795590292,39.80982278,87.918,87.878,11.37939617]
[1772795590293,0.34075898,87.899,87.878,11.37939617]
[1772795591998,4.06614962,87.91,87.87,0.68350965]
[1772795592197,0.34151236,87.923,87.872,0.68350965]
[1772795592384,0.34151236,87.923,87.882,0.68350965]
[1772795593196,0.34187585,87.919,87.882,0.68350965]
[1772795594001,0.34187585,87.919,87.881,0.14216157]
[1772795594002,0.34187585,87.919,87.884,0.68350965]
[1772795594300,11.37423508,87.918,87.884,0.68350965]
[1772795595883,11.37423508,87.918,87.885,11.378506]
[1772795596083,0.34293066,87.917,87.886,0.68350965]
[1772795597087,11.37340762,87.925,87.886,0.68350965]
[1772795597590,11.37290373,87.929,87.886,0.68350965]
[1772795597991,42.0,87.95,87.89,0.68350965]
[1772795597992,11.37100167,87.943,87.89,0.68350965]
[1772795598298,0.34362835,87.942,87.892,0.68350965]
[1772795600198,11.37126027,87.941,87.894,0.68350965]
[1772795600700,0.34362835,87.942,87.896,0.68350965]
[1772795600887,0.34362835,87.942,87.899,0.14216157]
[1772795601088,0.34362835,87.942,87.904,0.68350965]
[1772795601596,0.34462854,87.948,87.904,0.68350965]
[1772795603308,0.34526473,87.939,87.906,0.68350965]
[1772795605398,11.71754266,87.938,87.908,0.68350965]
[1772795605892,0.34621537,87.937,87.908,0.68350965]
[1772795606094,11.371227,87.942,87.908,0.68350965]
[1772795606281,11.37061738,87.946,87.908,0.68350965]
[1772795606486,11.37022592,87.949,87.908,0.68350965]
[1772795607103,0.34652345,87.949,87.908,0.68350965]
[1772795607408,11.71674937,87.949,87.91,0.68350965]
[1772795607698,0.34652345,87.948,87.91,0.68350965]
[1772795607906,0.3468288,87.939,87.91,0.68350965]
[1772795608798,0.3468288,87.929,87.894,0.68350965]
[1772795609006,0.34713799,87.937,87.894,0.68350965]
[1772795610108,4.06614962,87.94,87.896,0.68350965]
[1772795610109,0.34743462,87.935,87.896,0.68350965]
[1772795611206,11.37190684,87.936,87.896,0.68350965]
[1772795611606,0.34800442,87.935,87.896,0.68350965]
[1772795612006,4.06457728,87.91,87.812,102.9]
[1772795612209,4.06457728,87.89,87.858,0.7234875]
[1772795612513,4.06457728,87.89,87.857,28.45514042]
[1772795612514,3.25503234,87.89,87.859,0.7234875]
[1772795613199,3.69383402,87.936,87.859,0.7234875]
[1772795613200,4.06457728,87.91,87.859,0.7234875]
[1772795613400,4.06457728,87.93,87.873,0.7234875]
[1772795613602,4.06457728,87.94,87.887,0.7234875]
[1772795613808,4.06457728,87.94,87.893,0.7234875]
[1772795614112,11.37151889,87.939,87.895,0.7234875]
[1772795614527,39.80031612,87.939,87.895,0.7234875]
[1772795616115,39.80031612,87.939,87.897,0.7234875]
[1772795620923,11.37151889,87.939,87.899,0.7234875]
[1772795621822,11.3703552,87.948,87.901,0.7234875]
[1772795622004,11.3703552,87.948,87.903,0.7234875]
[1772795623309,11.3703552,87.948,87.905,0.7234875]
[1772795627022,11.3703552,87.948,87.907,0.7234875]
[1772795628826,11.36986358,87.952,87.913,0.7234875]
[1772795630523,11.36986358,87.952,87.909,0.28432314]
[1772795630524,39.78538625,87.972,87.915,0.7234875]
[1772795630712,4.06457728,87.96,87.915,0.7234875]
[1772795635508,11.36893325,87.959,87.917,0.7234875]
[1772795635824,39.79126638,87.959,87.917,0.7234875]
[1772795637513,4.06457728,87.97,87.919,0.7234875]
[1772795640327,4.06457728,87.97,87.919,0.7234875]
[1772795641027,4.06457728,87.96,87.921,0.7234875]
[1772795641330,4.06457728,87.95,87.907,0.7234875]
[1772795643233,39.79579073,87.949,87.908,12.09901646]
[1772795643418,39.79579073,87.949,87.901,0.7234875]
[1772795643419,4.06457728,87.94,87.901,0.7234875]
[1772795643928,4.06457728,87.93,87.901,0.7234875]
[1772795644134,4.06457728,87.92,87.888,0.7234875]
[1772795644621,4.06457728,87.91,87.883,11.37870867]
[1772795645311,4.06457728,87.91,87.863,0.14216157]
[1772795645312,4.06457728,87.9,87.866,0.7234875]
[1772795645630,4.06457728,87.91,87.866,0.7234875]
[1772795646627,4.06457728,87.92,87.869,0.14216157]
[1772795646819,43.86896712,87.93,87.877,0.14216157]
[1772795647011,43.86896712,87.93,87.882,0.7234875]
[1772795647618,43.86896712,87.93,87.884,0.7234875]
[1772795647823,4.06457728,87.92,87.884,0.7234875]
[1772795650423,11.37410571,87.919,87.885,11.378506]
[1772795650744,11.37410571,87.919,87.886,0.7234875]
[1772795652944,4.06457728,87.93,87.888,0.7234875]
[1772795653321,4.06457728,87.92,87.888,0.7234875]
[1772795653517,4.06457728,87.91,87.883,11.378732]
[1772795653819,4.06457728,87.91,87.884,0.7234875]
[1772795654228,96.65791058,87.939,87.884,0.7234875]
[1772795654229,4.06457728,87.92,87.884,0.7234875]
[1772795654541,39.80031612,87.939,87.884,0.7234875]
[1772795654719,4.06457728,87.93,87.884,0.7234875]
[1772795655040,11.37281215,87.929,87.886,0.7234875]
[1772795656823,4.06457728,87.92,87.886,0.7234875]
[1772795657840,11.37410571,87.919,87.887,11.37824706]
[1772795658138,11.37410571,87.919,87.888,0.7234875]
[1772795661732,11.37410571,87.919,87.89,0.7234875]
[1772795661938,4.06457728,87.91,87.89,0.7234875]
[1772795662530,4.06457728,87.91,87.885,11.37843676]
[1772795662931,4.06457728,87.91,87.884,0.7234875]
[1772795663136,4.06457728,87.9,87.878,0.7234875]
[1772795663338,4.06457728,87.9,87.85,0.28432314]
[1772795663339,4.06457728,87.9,87.872,0.7234875]
[1772795664037,11.3766937,87.899,87.874,0.7234875]
[1772795665450,39.81027559,87.917,87.876,0.7234875]
[1772795665628,4.06457728,87.9,87.876,0.7234875]
[1772795667547,11.3756134,87.908,87.878,0.7234875]
[1772795670240,11.3756134,87.908,87.879,0.7234875]
[1772795671549,11.3756134,87.908,87.88,11.37915339]
[1772795671931,4.06457728,87.9,87.88,11.37915339]
[1772795672451,4.06774202,87.9,87.88,11.37915339]
[1772795673463,11.3766937,87.899,87.876,12.10304795]
[1772795673761,11.3766937,87.899,87.876,11.37956045]
[1772795674153,4.06774202,87.89,87.87,0.7234875]
[1772795674534,4.06774202,87.89,87.871,11.38031887]
[1772795675358,39.81842796,87.899,87.871,12.10380637]
[1772795675543,11.3766937,87.899,87.872,0.7234875]
[1772795676037,11.3766937,87.899,87.873,11.38005985]
[1772795676537,11.3766937,87.899,87.873,12.10354735]
[1772795676858,11.3766937,87.899,87.874,0.7234875]
[1772795677443,11.3766937,87.899,87.875,11.37980085]
[1772795677643,11.3766937,87.899,87.876,0.7234875]
[1772795678663,4.06774202,87.9,87.876,0.7234875]
[1772795679037,11.3766937,87.899,87.876,0.7234875]
[1772795679555,4.06774202,87.9,87.845,3.69383402]
[1772795679556,11.37449383,87.916,87.878,0.7234875]
[1772795681369,11.37406951,87.92,87.878,0.7234875]
[1772795681558,15.44181153,87.92,87.88,0.7234875]
[1772795683054,15.44181153,87.92,87.882,0.7234875]
[1772795684347,4.06774202,87.91,87.882,0.7234875]
[1772795686261,4.06774202,87.89,87.872,0.7234875]
[1772795686566,4.06774202,87.89,87.867,11.38077544]
[1772795687851,4.06774202,87.89,87.867,12.10426294]
[1772795689054,11.37552896,87.908,87.868,0.7234875]
[1772795689260,39.81435136,87.908,87.868,0.7234875]
[1772795689463,4.06774202,87.9,87.868,0.7234875]
[1772795692247,4.06774202,87.89,87.868,0.7234875]
[1772795692770,4.06774202,87.89,87.863,0.7234875]
[1772795695468,11.37798814,87.889,87.863,0.7234875]
[1772795696151,11.37798814,87.889,87.865,0.7234875]
[1772795697854,4.06774202,87.9,87.866,11.38096647]
[1772795698052,4.06774202,87.9,87.867,0.7234875]
[1772795698259,39.81389846,87.909,87.867,0.7234875]
[1772795698966,4.06774202,87.9,87.867,0.7234875]
[1772795700373,11.3766937,87.899,87.868,11.38070742]
[1772795700554,11.3766937,87.899,87.869,0.7234875]
[1772795701074,4.06774202,87.89,87.869,0.7234875]
[1772795701462,39.81842796,87.899,87.869,0.7234875]
[1772795701463,11.3766937,87.899,87.869,0.7234875]
[1772795703459,4.06774202,87.88,87.847,0.7234875]
[1772795703759,4.06774202,87.88,87.853,0.7234875]
[1772795704154,4.06774202,87.89,87.859,0.7234875]
[1772795704386,11.3766937,87.899,87.859,0.7234875]
[1772795704969,4.06774202,87.89,87.859,0.7234875]
[1772795705362,39.81842796,87.899,87.859,0.7234875]
[1772795706164,4.06774202,87.89,87.861,0.7234875]
[1772795708372,11.37798814,87.889,87.861,0.7234875]
[1772795708561,4.06774202,87.88,87.861,0.7234875]
[1772795708759,11.37798814,87.889,87.845,0.7234875]
[1772795708760,4.06774202,87.87,87.845,0.7234875]
[1772795709076,4.06774202,87.87,87.812,0.7234875]
[1772795709279,4.06774202,87.85,87.812,0.7234875]
[1772795710279,4.06774202,87.85,87.814,0.7234875]
[1772795711078,11.38316884,87.849,87.814,0.7234875]
[1772795711377,4.06774202,87.85,87.814,0.7234875]
[1772795712085,4.06774202,87.86,87.814,0.7234875]
[1772795712284,11.38109599,87.865,87.814,0.7234875]
[1772795712580,11.3805779,87.869,87.817,0.7234875]
[1772795712780,4.06774202,87.86,87.819,0.7234875]
[1772795713080,4.06774202,87.86,87.82,0.7234875]
[1772795713262,4.06774202,87.86,87.821,0.7234875]
[1772795713458,11.3805779,87.869,87.822,0.7234875]
[1772795715081,11.3805779,87.869,87.824,0.7234875]
[1772795718180,4.06774202,87.86,87.826,0.7234875]
[1772795719495,4.06774202,87.86,87.821,6.88897582]
[1772795719496,11.38187322,87.859,87.828,0.7234875]
[1772795720564,4.06774202,87.87,87.828,0.7234875]
[1772795720771,4.06774202,87.87,87.83,0.7234875]
[1772795721119,4.06774202,87.87,87.821,6.88897582]
[1772795721120,4.06774202,87.85,87.821,6.88897582]
[1772795721398,4.06774202,87.84,87.81,0.2]
[1772795721693,4.06774202,87.84,87.812,0.7234875]
[1772795722981,11.38446475,87.839,87.812,0.7234875]
[1772795723570,11.38446475,87.839,87.813,0.7234875]
[1772795723796,11.38362662,87.846,87.813,0.7234875]
[1772795725590,11.38362662,87.846,87.815,0.7234875]
[1772795727379,11.38213232,87.857,87.815,0.7234875]
[1772795727580,39.83746314,87.857,87.817,0.7234875]
[1772795728690,11.38213232,87.857,87.817,0.7234875]
[1772795730086,11.38213232,87.857,87.819,0.7234875]
[1772795731684,4.06774202,87.83,87.81,0.2]
[1772795731884,11.38576096,87.829,87.81,0.2]
[1772795734073,4.06774202,87.84,87.81,0.2]
[1772795734276,4.06774202,87.83,87.81,0.2]
[1772795734470,4.07471347,87.83,87.81,0.2]
[1772795735378,4.07471347,87.84,87.81,0.2]
[1772795736803,39.84562664,87.839,87.81,0.2]
[1772795736993,39.84562664,87.839,87.81,0.9234875]
[1772795741512,39.84562664,87.839,87.81,0.2]
[1772795742000,4.07471347,87.83,87.799,0.7234875]
[1772795742298,4.07471347,87.82,87.793,0.7234875]
[1772795742474,4.07471347,87.83,87.793,0.7234875]
[1772795742798,39.85016337,87.829,87.793,0.7234875]
[1772795743100,4.07471347,87.82,87.79,0.2]
[1772795743280,4.07471347,87.82,87.792,11.3905428]
[1772795743480,4.07471347,87.82,87.79,0.2]
[1772795743679,4.07471347,87.82,87.791,0.7234875]
[1772795743905,39.85016337,87.829,87.796,0.7234875]
[1772795746779,28.46440241,87.829,87.798,11.38976459]
[1772795747095,28.46440241,87.829,87.801,0.7234875]
[1772795747779,4.07471347,87.82,87.79,0.2]
[1772795747995,4.07471347,87.81,87.8,1e-08]
[1772795748694,4.07471347,87.82,87.8,1e-08]
[1772795749093,39.85470114,87.819,87.8,1e-08]
[1772795750712,0.67532966,87.809,87.77,11.59338352]
[1772795751006,0.67532966,87.809,87.77,40.07692003]
[1772795751899,0.67532966,87.818,87.77,40.07692003]
[1772795752097,39.85470114,87.819,87.77,40.07692003]
[1772795752409,40.5300308,87.819,87.77,40.07692003]
[1772795752587,0.67532966,87.818,87.771,0.71313237]
[1772795755400,11.3873168,87.817,87.773,0.71313237]
[1772795756811,28.46764367,87.819,87.775,0.71313237]
[1772795756995,29.14297333,87.819,87.775,0.71313237]
[1772795757298,0.67532966,87.818,87.775,0.71313237]
[1772795758597,28.46764367,87.819,87.774,39.87513386]
[1772795758598,0.67532966,87.816,87.777,0.71313237]
[1772795760805,11.3873168,87.817,87.779,0.71313237]
[1772795761000,0.67532966,87.816,87.779,0.71313237]
[1772795761302,0.67532966,87.826,87.779,0.71313237]
[1772795761488,11.38602024,87.827,87.781,0.71313237]
[1772795762818,11.38524244,87.833,87.783,0.66752221]
[1772795763021,0.67137893,87.832,87.783,0.66752221]
[1772795765104,11.3855017,87.831,87.785,0.66752221]
[1772795765909,11.38446475,87.839,87.787,0.66752221]
[1772795766121,0.67137893,87.852,87.79,0.66752221]
[1772795766308,0.67137893,87.852,87.791,0.14216157]
[1772795766510,0.67137893,87.849,87.792,0.66752221]
[1772795766805,4.07471347,87.84,87.792,0.66752221]
[1772795767003,11.38459436,87.838,87.793,11.39042976]
[1772795767211,0.67137893,87.837,87.794,0.66752221]
[1772795767712,0.67137893,87.829,87.794,0.66752221]
[1772795771014,0.67137893,87.836,87.796,0.66752221]
[1772795771313,0.67137893,87.829,87.796,0.66752221]
[1772795771499,0.67137893,87.829,87.795,12.05769249]
[1772795771693,0.67137893,87.827,87.796,0.66752221]
[1772795775318,0.67137893,87.819,87.79,0.66752221]
[1772795776597,12.05856606,87.818,87.792,0.66752221]
[1772795777303,0.67137893,87.817,87.792,0.66752221]
[1772795778005,11.38718713,87.818,87.792,0.66752221]
[1772795778605,29.13675364,87.826,87.794,0.66752221]
[1772795778816,0.67137893,87.825,87.794,0.66752221]
[1772795779606,11.38563133,87.83,87.794,0.66752221]
[1772795780116,12.05701026,87.83,87.794,0.66752221]
[1772795780313,11.38563133,87.83,87.794,0.66752221]
[1772795780910,11.3849832,87.835,87.796,0.66752221]
[1772795782626,11.3849832,87.835,87.798,0.66752221]
[1772795783724,0.67137893,87.834,87.798,0.66752221]
[1772795785530,11.38524244,87.833,87.8,0.66752221]
[1772795785710,0.67137893,87.832,87.8,0.66752221]
[1772795786433,11.38524244,87.833,87.8,0.66752221]
[1772795788510,0.67137893,87.832,87.802,0.66752221]
[1772795790725,0.67137893,87.83,87.802,0.66752221]
[1772795792931,11.38576096,87.829,87.802,0.66752221]
[1772795793113,0.70832965,87.828,87.802,0.66752221]
[1772795793316,0.70832965,87.828,87.803,12.07331561]
[1772795793728,0.70832965,87.828,87.804,0.68418313]
[1772795794738,11.38576096,87.829,87.804,0.68418313]
[1772795795240,0.70832965,87.832,87.804,0.68418313]
[1772795797540,11.3855017,87.831,87.804,0.68418313]
[1772795797743,0.70832965,87.83,87.804,0.68418313]
[1772795800533,11.38576096,87.829,87.804,0.68418313]
[1772795800733,12.09409061,87.829,87.804,0.68418313]
[1772795801227,12.09409061,87.829,87.805,0.68418313]
[1772795802142,11.38530213,87.833,87.805,0.68418313]
[1772795803244,28.46036809,87.842,87.781,56.95932273]
[1772795803245,11.38412883,87.842,87.807,0.68418313]
[1772795804242,11.38278013,87.852,87.807,0.68418313]
[1772795804740,0.70832965,87.851,87.807,0.68418313]
[1772795806945,0.70832965,87.849,87.809,0.68418313]
[1772795809547,11.38329842,87.848,87.811,0.68418313]
[1772795809851,11.38217568,87.857,87.811,0.68418313]
[1772795811034,11.38217568,87.857,87.813,0.68418313]
[1772795811230,0.70832965,87.856,87.813,0.68418313]
[1772795813151,0.70832965,87.854,87.815,0.68418313]
[1772795814356,0.70832965,87.829,87.793,0.68418313]
[1772795814652,0.70832965,87.849,87.793,0.68418313]
[1772795814960,0.70832965,87.849,87.776,56.96316082]
[1772795814961,11.38329842,87.848,87.801,0.68418313]
[1772795815164,12.09162807,87.848,87.801,0.68418313]
[1772795815652,0.70832965,87.847,87.801,0.68418313]
[1772795817057,11.38355758,87.846,87.803,0.68418313]
[1772795818555,12.09188723,87.846,87.803,0.68418313]
[1772795819953,0.70832965,87.852,87.805,0.68418313]
[1772795820456,11.38290969,87.851,87.805,0.68418313]
[1772795821638,0.67075164,87.851,87.807,0.70778823]
[1772795823250,0.67075164,87.864,87.809,0.70778823]
[1772795824651,0.67075164,87.862,87.811,0.70778823]
[1772795826661,0.67075164,87.86,87.813,0.70778823]
[1772795827756,0.67075164,87.859,87.813,0.70778823]
[1772795833460,0.67075164,87.857,87.815,0.70778823]
[1772795835863,0.67075164,87.855,87.817,0.70778823]
[1772795836366,0.67075164,87.86,87.817,0.70778823]
[1772795836568,0.67075164,87.866,87.817,0.70778823]
[1772795837749,0.67075164,87.866,87.82,0.14216157]
[1772795837954,11.38109599,87.865,87.821,0.70778823]
[1772795838156,0.67075164,87.871,87.823,0.70778823]
[1772795838364,0.67075164,87.871,87.831,0.70778823]
[1772795840368,11.38044838,87.87,87.832,39.84880225]
[1772795840671,0.67075164,87.869,87.833,0.70778823]
[1772795842653,0.67075164,87.867,87.835,0.70778823]
[1772795844964,0.67075164,87.865,87.836,11.38485359]
[1772795845170,0.67075164,87.865,87.83,0.70778823]
[1772795846275,0.67075164,87.865,87.832,0.70778823]
[1772795848571,0.67075164,87.863,87.834,0.70778823]
[1772795850672,11.3814846,87.862,87.834,0.70778823]
[1772795850879,0.67075164,87.861,87.836,0.70778823]
[1772795852873,0.67075164,87.861,87.838,0.71428025]
[1772795853076,11.38174368,87.86,87.838,0.71428025]
[1772795853264,0.66404428,87.859,87.838,0.71428025]
[1772795854084,0.66404428,87.859,87.832,0.71428025]
[1772795854276,0.66404428,87.859,87.821,0.71428025]
[1772795855877,0.66404428,87.857,87.823,0.71428025]
[1772795856061,0.66404428,87.857,87.801,3.97815716]
[1772795856062,0.66404428,87.857,87.818,0.71428025]
[1772795856262,0.66404428,87.849,87.816,11.38738907]
[1772795856763,0.66404428,87.849,87.817,0.71428025]
[1772795860676,0.66404428,87.847,87.819,0.71428025]
[1772795861281,0.66404428,87.847,87.811,0.71428025]
[1772795862788,11.38355758,87.846,87.811,0.71428025]
[1772795862987,0.66404428,87.839,87.79,0.71428025]
[1772795863197,0.66404428,87.829,87.791,0.71428025]
[1772795863371,0.66404428,87.819,87.791,0.71428025]
[1772795864371,0.66404428,87.819,87.788,11.3910785]
[1772795864791,0.66404428,87.819,87.789,0.71428025]
[1772795864982,0.66404428,87.817,87.791,0.71428025]
[1772795865182,11.38718713,87.818,87.791,0.71428025]
[1772795866096,0.66404428,87.818,87.792,11.3905595]
[1772795866278,0.66404428,87.818,87.793,0.71428025]
[1772795867769,11.3873168,87.817,87.795,0.71428025]
[1772795871080,11.3873168,87.817,87.778,28.48077938]
[1772795871081,12.04980524,87.829,87.797,0.71428025]
[1772795871284,11.38527475,87.833,87.797,0.71428025]
[1772795871487,0.66404428,87.841,87.797,0.71428025]
[1772795871683,0.66404428,87.841,87.799,0.71428025]
[1772795871887,0.66404428,87.847,87.801,0.71428025]
[1772795875699,0.66404428,87.845,87.803,0.71428025]
[1772795877882,0.66404428,87.845,87.802,39.8624177]
[1772795877883,12.04786104,87.844,87.805,0.71428025]
[1772795878377,0.66404428,87.843,87.805,0.71428025]
[1772795880488,11.38381676,87.844,87.804,39.86150971]
[1772795880489,0.66404428,87.841,87.807,0.71428025]
[1772795881600,11.38407595,87.842,87.802,0.67531596]
[1772795881601,4.0724561,87.84,87.802,0.67531596]
[1772795881785,0.67154417,87.829,87.794,0.67531596]
[1772795882702,0.67154417,87.827,87.795,11.39017028]
[1772795883587,0.67154417,87.827,87.795,12.06548624]
[1772795884505,0.67154417,87.827,87.796,0.67531596]
[1772795886603,4.0724561,87.82,87.795,11.39017028]
[1772795886807,0.67154417,87.819,87.791,11.39059704]
[1772795887010,0.67154417,87.819,87.787,16.27818216]
[1772795888117,0.67154417,87.817,87.788,12.06639446]
[1772795888409,0.67154417,87.817,87.789,0.67531596]
[1772795888804,0.67154417,87.817,87.788,12.06639446]
[1772795888998,0.67154417,87.817,87.789,0.67531596]
[1772795891899,0.67154417,87.815,87.791,0.67531596]
[1772795894317,0.67154417,87.813,87.791,0.67531596]
[1772795895311,42.0,87.84,87.793,0.67531596]
[1772795895312,0.67154417,87.829,87.793,0.67531596]
[1772795896306,11.38614239,87.827,87.794,11.39030002]
[1772795896509,11.38614239,87.827,87.795,0.67531596]
[1772795897220,0.67154417,87.826,87.795,0.67531596]
[1772795899113,0.67154417,87.824,87.797,0.67531596]
[1772795899518,0.67154417,87.819,87.797,0.67531596]
[1772795901314,0.67154417,87.817,87.797,0.67531596]
[1772795902609,11.38744647,87.816,87.797,0.67531596]
[1772795902809,12.05899064,87.816,87.797,0.67531596]
[1772795903610,11.38744647,87.816,87.797,0.67531596]
[1772795903805,12.05899064,87.816,87.797,0.67531596]
[1772795904011,0.67154417,87.815,87.797,0.67531596]
[1772795905605,11.38770583,87.814,87.797,0.67531596]
[1772795908006,11.38720216,87.818,87.799,0.67531596]
[1772795909110,0.67154417,87.821,87.799,0.67531596]
[1772795909621,11.3869278,87.82,87.799,0.67531596]
[1772795909945,12.05847197,87.82,87.799,0.67531596]
[1772795910608,0.67154417,87.825,87.799,0.67531596]
[1772795913323,0.67154417,87.825,87.787,4.88707348]
[1772795913324,0.67609678,87.83,87.801,0.65769838]
[1772795913521,11.38511282,87.834,87.801,0.65769838]
[1772795915327,0.67609678,87.833,87.801,0.65769838]
[1772795916448,0.67609678,87.829,87.803,0.65769838]
[1772795916621,0.67609678,87.829,87.798,0.65769838]
[1772795917331,39.84880225,87.832,87.798,0.65769838]
[1772795917332,0.67609678,87.819,87.798,0.65769838]
[1772795919030,11.38718713,87.818,87.798,0.65769838]
[1772795919826,0.67609678,87.817,87.798,0.65769838]
[1772795920829,0.67609678,87.817,87.787,4.88707348]
[1772795921138,0.67609678,87.817,87.785,0.65769838]
[1772795921139,0.67609678,87.808,87.785,0.65769838]
[1772795922219,0.67609678,87.808,87.787,0.65769838]
[1772795923728,0.67609678,87.808,87.776,28.48135844]
[1772795923729,0.67609678,87.808,87.788,12.04877688]
[1772795924319,0.67609678,87.808,87.789,0.65769838]
[1772795925730,11.38861366,87.807,87.789,0.65769838]
[1772795926041,12.06471044,87.807,87.789,0.65769838]
[1772795926838,0.67609678,87.799,87.77,1e-08]
[1772795927036,4.0743492,87.8,87.748,0.65769838]
[1772795927037,0.67609678,87.779,87.748,0.65769838]
[1772795927347,0.14216157,87.806,87.72,0.2]
[1772795927348,4.0743492,87.81,87.762,0.69979214]
[1772795927733,0.42648471,87.821,87.764,0.69979214]
[1772795927935,4.0743492,87.82,87.764,0.69979214]
[1772795930148,39.85470114,87.819,87.766,0.69979214]
[1772795932344,39.85470114,87.819,87.768,0.69979214]
[1772795934437,39.85470114,87.819,87.77,0.69979214]
[1772795938840,39.85470114,87.819,87.772,0.69979214]
[1772795940038,4.0743492,87.81,87.772,0.69979214]
[1772795940655,39.85923993,87.809,87.774,0.69979214]
[1772795943760,11.38835426,87.809,87.776,0.69979214]
[1772795945160,11.38835426,87.809,87.778,0.69979214]
[1772795947264,28.46807376,87.818,87.78,0.69979214]
[1772795950657,28.46807376,87.818,87.782,0.69979214]
[1772795951367,11.38705747,87.819,87.782,0.69979214]
[1772795952348,11.38705747,87.819,87.781,39.87195406]
[1772795952349,11.38647543,87.824,87.784,0.69979214]
[1772795952758,11.38647543,87.824,87.786,0.69979214]